fUSD/lending_fUSD_20250911
["ID","MTS","AMOUNT","RATE_DAILY","PERIOD"]
[384868710,1757602368341,150.96,0.00014747,2]
[384868711,1757602368811,150.96,0.00015523,2]
[384868712,1757602369088,150.96,0.00016299,2]
[384868713,1757602369202,150.96,0.00017076,2]
[384868714,1757602369291,150.96,0.00017852,2]
[384868715,1757602369425,150.96,0.00018628,2]
[384868716,1757602369669,150.96,0.00019404,2]
[384868717,1757602371753,-150.96,0.0002018,2]
[384868718,1757602371791,-47.12,0.00020956,2]
[384868719,1757602371847,-103.84,0.00020956,2]
[384868720,1757602378784,-150.96,0.00021733,2]
[384868721,1757602378815,-47.12,0.00022509,2]
[384868722,1757602378854,-103.84,0.00022509,2]
[384868723,1757602401714,-500.0,0.00021,2]
[384868724,1757602417481,1705.38,0.00030137,120]
[384868725,1757602418753,-195.0,0.00020511,2]
[384868726,1757602419296,-150.3,0.00020511,2]
[384868727,1757602419335,-199.4,0.00021,2]
[384868728,1757602441394,-500.0,0.00021,2]
[384868729,1757602468405,-500.0,0.00021,2]
[384868730,1757602495965,-324.2169191,0.00021,2]
[384868731,1757602508105,-634.37807391,0.00021,2]
[384868732,1757602508134,-195.0,0.000231,2]
[384868733,1757602508167,-150.96,0.00023285,2]
[384868734,1757602508196,-150.96,0.00024061,2]
[384868735,1757602508227,-150.96,0.00024837,2]
[384868736,1757602508257,-150.0,0.00025457,2]
[384868737,1757602508290,-213.16746633,0.00025573,2]
[384868738,1757602508336,-150.96,0.00025613,2]
[384868739,1757602508365,-250.01122595,0.00025689,2]
[384868740,1757602508422,-286.85498556,0.00025805,2]
[384868741,1757602508463,-323.69874517,0.00025921,2]
[384868742,1757602508492,-300.0,0.00026009,2]
[384868743,1757602508526,-1200.0,0.00026009,2]
[384868744,1757602509038,-145.8303039,0.00026009,2]
[384868745,1757602520716,-670.90972413,0.000249,2]
[384868746,1757602520993,-3658.18055174,0.000249,2]
[384868747,1757602532780,-154.1696961,0.00026009,2]
[384868748,1757602532831,-21360.96697502,0.0002601,2]
[384868749,1757602545027,-500.0,0.0002601,2]
[384868751,1757602556968,-500.0,0.0002601,2]
[384868752,1757602568926,-106.89203709,0.00021,2]
[384868753,1757602568957,-286.21592582,0.00021,2]
[384868754,1757602581452,-500.0,0.0002601,2]
[384868755,1757602593511,-164.5592147,0.0002601,2]
[384868756,1757602605551,-500.0,0.0002601,2]
[384868757,1757602617518,-500.0,0.0002601,2]
[384868758,1757602629587,-500.0,0.0002601,2]
[384868759,1757602642015,-897.0,0.0002601,2]
[384868760,1757602654740,-4238.786,0.0002601,2]
[384868761,1757602682875,-515.37529716,0.0002601,2]
[384868762,1757602760661,-195.0,0.00020235,2]
[384868763,1757602763542,-8.0,0.00020235,2]
[384868764,1757602765211,-4167.0,0.000249,2]
[384868765,1757602782252,-17.78726651,0.000249,2]
[384868766,1757602782281,-639.15251312,0.0002601,2]
[384868767,1757602782309,-200.0,0.00026109,2]
[384868768,1757602782337,-120.58044074,0.00026154,2]
[384868769,1757602782420,-44.95955926,0.00026154,2]
[384868770,1757602799289,-2000.0,0.00026182,2]
[384868771,1757602828031,200.0,0.00030136,120]
[384868774,1757602880704,-30.0,0.00020233,2]
[384868775,1757602880736,-140.0,0.00020233,2]
[384868776,1757602907824,-195.0,0.00022256,2]
[384868777,1757602907852,-227.5,0.00024658,2]
[384868778,1757602907913,-302.52027506,0.000249,2]
[384868779,1757602929868,-2000.0,0.000249,2]
[384868780,1757602958228,-500.0,0.000249,2]
[384868781,1757602984927,-151.0,0.00021571,2]
[384868782,1757602984973,-198.0,0.00023728,2]
[384868783,1757602992731,-52.0,0.00023728,2]
[384868784,1757602992760,-195.0,0.00023728,2]
[384868785,1757602992792,-1242.77408275,0.000249,2]
[384868786,1757602992913,-13736.76799844,0.000251,2]
[384868787,1757602997831,2000.0,0.0002877,120]
[384868788,1757602999527,-2000.0,0.00024658,15]
[384868789,1757602999556,-2000.0,0.00024658,15]
[384868790,1757602999628,-7033.19104797,0.000251,2]
[384868791,1757603005341,512.107259,0.0002877,120]
[384868792,1757603011859,-603.895982,0.000249,2]
[384868793,1757603011912,-2878.104018,0.000249,2]
[384868794,1757603113809,-164.5592147,0.000249,2]
[384868795,1757603131268,-500.0,0.000249,2]
[384868797,1757603148355,-500.0,0.000249,2]
[384868798,1757603148471,153.82,0.00016438,2]
[384868799,1757603165403,-500.0,0.000249,2]
[384868800,1757603182484,-897.0,0.000249,2]
[384868801,1757603216731,-515.37529716,0.000249,2]
[384868802,1757603233713,-639.15251312,0.00024657,2]
[384868803,1757603251920,-300.0,0.00024657,2]
[384868804,1757603268832,-1200.0,0.00024657,2]
[384868805,1757603286279,-154.1696961,0.00024657,2]
[384868806,1757603308516,-323.69874517,0.00024657,2]
[384868807,1757603330530,-286.85498556,0.00024657,2]
[384868809,1757603352550,-250.01122595,0.00024657,2]
[384868810,1757603374566,-150.96,0.000246,3]
[384868811,1757603396979,-213.16746633,0.000246,3]
[384868812,1757603419600,-200.0,0.000244,3]
[384868822,1757603432238,-4948.0,0.000244,3]
[384868823,1757603432247,-1479.09796395,0.00024639,2]
[384868824,1757603432257,-300.0,0.00024656,2]
[384868825,1757603432267,-1200.0,0.00024656,2]
[384868826,1757603432277,-6523.0119228,0.00024657,2]
[384868827,1757603432286,-1200.0,0.00024899,2]
[384868828,1757603432296,-5513.0,0.000249,5]
[384868829,1757603432305,-153.82,0.00025049,2]
[384868830,1757603432314,-250.8434367,0.000251,2]
[384868831,1757603432324,-150.0,0.00025196,2]
[384868832,1757603432333,-150.0908341,0.000252,2]
[384868833,1757603432343,-231.59569201,0.00025311,2]
[384868834,1757603432353,-7641.8408691,0.00025388,2]
[384868835,1757603432363,-324.0,0.000254,2]
[384868836,1757603432373,-271.62457705,0.00025426,2]
[384868837,1757603432382,-311.65346209,0.00025541,2]
[384868838,1757603432392,-351.68234712,0.00025655,2]
[384868839,1757603432402,-150.0,0.00025694,2]
[384868840,1757603432412,-391.71123216,0.0002577,2]
[384868841,1757603432423,-250.84343669,0.00025866,2]
[384868842,1757603432432,-257.94504884,0.00025885,2]
[384868843,1757603432462,-173.79506836,0.00025885,2]
[384868844,1757603432472,-1000.0,0.00025933,2]
[384868845,1757603432482,-150.0,0.00025988,7]
[384868846,1757603432492,-930.38700863,0.00026,2]
[384868847,1757603432546,-136.15299137,0.00026,2]
[384868848,1757603432555,-123.80376362,0.00026,2]
[384868849,1757603432567,-324.07494815,0.00026,2]
[384868850,1757603432578,-23.89029047,0.00026,2]
[384868851,1757603432587,-730.35,0.00026049,2]
[384868852,1757603432597,-150.0,0.00026062,2]
[384868853,1757603432606,-5000.0,0.00026066,2]
[384868854,1757603432616,-511.79788728,0.00026114,2]
[384868855,1757603432626,-250.0,0.00026146,2]
[384868856,1757603432636,-171.92,0.00026158,2]
[384868857,1757603432646,-257.91778498,0.00026167,2]
[384868858,1757603432655,-151.0,0.00026182,2]
[384868859,1757603432665,-3020.92,0.00026182,2]
[384868860,1757603432674,-551.82677232,0.00026229,2]
[384868861,1757603432684,-72.63736295,0.000263,2]
[384868862,1757603432693,-591.85565736,0.00026344,2]
[384868864,1757603432702,-1000.0,0.00026388,2]
[384868866,1757603432712,-1100.0,0.00026388,2]
[384868868,1757603432721,-150.96,0.0002639,2]
[384868870,1757603432731,-1000.0,0.00026438,7]
[384868872,1757603432740,-631.88454239,0.00026459,2]
[384868874,1757603432749,-671.91342743,0.00026574,2]
[384868876,1757603432758,-201.18163226,0.00026575,2]
[384868878,1757603432768,-151.0,0.00026575,2]
[384868880,1757603432778,-151.0,0.00026575,2]
[384868882,1757603432788,-151.0,0.00026575,2]
[384868884,1757603432797,-151.0,0.00026575,2]
[384868886,1757603432807,-151.0,0.00026575,2]
[384868888,1757603432816,-600.0,0.00026575,2]
[384868891,1757603432825,-86.299294,0.00026575,2]
[384868894,1757603432837,-64.700706,0.00026575,2]
[384868898,1757603432847,-151.0,0.00026575,2]
[384868900,1757603432856,-151.0,0.00026575,2]
[384868901,1757603432866,-200.0,0.00026575,2]
[384868903,1757603432876,-151.0,0.00026575,2]
[384868905,1757603432886,-151.0,0.00026575,2]
[384868907,1757603432895,-151.0,0.00026575,2]
[384868909,1757603432904,-151.0,0.00026575,2]
[384868911,1757603432914,-151.0,0.00026575,2]
[384868914,1757603432923,-151.0,0.00026575,2]
[384868915,1757603432933,-190.63508844,0.00026575,2]
[384868917,1757603432947,-151.0,0.00026575,2]
[384868919,1757603432956,-188.71378434,0.00026575,2]
[384868920,1757603432966,-803.09,0.00026578,2]
[384868921,1757603432975,-318.0,0.0002658,2]
[384868922,1757603432985,-299.99,0.00026591,12]
[384868923,1757603432995,-150.99,0.00026591,2]
[384868924,1757603433004,-959.58779048,0.00026591,2]
[384868925,1757603433024,-5237.00220952,0.00026591,2]
[384868926,1757603433035,-353.58279048,0.0002663,7]
[384868927,1757603433047,-646.41720952,0.0002663,7]
[384868928,1757603433058,-250.84343669,0.00026632,2]
[384868929,1757603433068,-711.94231247,0.00026688,2]
[384868931,1757603433078,-471.46,0.00026732,2]
[384868932,1757603433088,-173.92213937,0.00026732,2]
[384868934,1757603433100,-629.33786063,0.00026732,2]
[384868936,1757603433111,-471.46,0.00026732,2]
[384868938,1757603433120,-803.26,0.00026732,2]
[384868940,1757603433130,-471.46,0.00026732,2]
[384868942,1757603433140,-471.46,0.00026732,2]
[384868944,1757603433151,-1089.5,0.00026732,2]
[384868946,1757603433160,-471.46,0.00026732,2]
[384868948,1757603433170,-471.46,0.00026732,2]
[384868950,1757603433180,-803.26,0.00026732,2]
[384868952,1757603433190,-803.26,0.00026732,2]
[384868954,1757603433200,-471.46,0.00026732,2]
[384868956,1757603433209,-471.46,0.00026732,2]
[384868958,1757603433218,-38.27757303,0.00026732,2]
[384868960,1757603433231,-342.49242697,0.00026732,2]
[384868962,1757603433240,-471.46,0.00026732,2]
[384868964,1757603433250,-471.46,0.00026732,2]
[384868966,1757603433260,-463.05,0.00026732,2]
[384868968,1757603433270,-249.52179345,0.00026791,2]
[384868970,1757603433279,-249.52179345,0.00026798,2]
[384868972,1757603433289,-751.97119751,0.00026803,2]
[384868974,1757603433301,-1000.0,0.00026821,7]
[384868976,1757603433311,-478.87247009,0.00026828,2]
[384868978,1757603433323,-1221.71372856,0.00026828,2]
[384868980,1757603433332,-920.78627144,0.00026829,2]
[384868983,1757603433355,-779.79992721,0.00026829,2]
[384868986,1757603433365,-1329.21949881,0.00026842,2]
[384869118,1757603438186,-350.78050119,0.00026842,2]
[384869119,1757603438196,-249.52179345,0.00026849,2]
[384869120,1757603438206,-1700.58619865,0.00026888,2]
[384869121,1757603438216,-249.52179345,0.00026891,2]
[384869122,1757603438225,-249.52179345,0.00026896,2]
[384869123,1757603438235,-1700.58619865,0.00026897,2]
[384869124,1757603438245,-186.91354752,0.00026905,2]
[384869125,1757603438255,-186.91354752,0.00026908,2]
[384869126,1757603438264,-186.91354752,0.00026914,2]
[384869127,1757603438274,-792.00008255,0.00026918,2]
[384869128,1757603438284,-1700.58619865,0.00026939,2]
[384869129,1757603438294,-186.91354752,0.00026939,2]
[384869130,1757603438303,-1700.58619865,0.00026943,2]
[384869131,1757603438313,-812.0,0.00026945,2]
[384869132,1757603438323,-249.52179345,0.00026957,2]
[384869133,1757603438333,-500.0,0.00026964,2]
[384869134,1757603438342,-500.0,0.00026964,2]
[384869135,1757603438352,-500.0,0.00026964,2]
[384869136,1757603438361,-500.0,0.00026964,2]
[384869137,1757603438372,-520.17549641,0.00026964,2]
[384869138,1757603438381,-500.0,0.00026964,2]
[384869139,1757603438390,-500.0,0.00026964,2]
[384869140,1757603438399,-500.0,0.00026964,2]
[384869141,1757603438408,-500.0,0.00026964,2]
[384869142,1757603438418,-500.0,0.00026964,2]
[384869143,1757603438427,-500.0,0.00026964,2]
[384869144,1757603438437,-500.0,0.00026964,2]
[384869145,1757603438446,-511.46658702,0.00026964,2]
[384869146,1757603438456,-500.0,0.00026964,2]
[384869147,1757603438465,-500.0,0.00026964,2]
[384869148,1757603438474,-500.0,0.00026964,2]
[384869149,1757603438483,-500.0,0.00026964,2]
[384869150,1757603438492,-405.03981088,0.00026964,2]
[384869151,1757603438501,-500.0,0.00026964,2]
[384869152,1757603438511,-500.0,0.00026964,2]
[384869153,1757603438520,-500.0,0.00026964,2]
[384869154,1757603438530,-500.0,0.00026964,2]
[384869155,1757603438539,-500.0,0.00026964,2]
[384869156,1757603438548,-500.0,0.00026964,2]
[384869157,1757603438558,-500.0,0.00026964,2]
[384869158,1757603438567,-500.0,0.00026964,2]
[384869159,1757603438577,-500.0,0.00026964,2]
[384869160,1757603438586,-500.0,0.00026964,2]
[384869161,1757603438595,-4238.786,0.00026965,2]
[384869162,1757603438605,-897.0,0.00026965,2]
[384869163,1757603438614,-1176.0,0.00026965,2]
[384869164,1757603438623,-6170.0,0.00026965,2]
[384869165,1757603438633,-4167.0,0.00026965,2]
[384869166,1757603438643,-725.0,0.00026965,2]
[384869167,1757603438653,-20968.0,0.00026965,2]
[384869168,1757603438662,-249.52179345,0.00026969,2]
[384869169,1757603438671,-1700.58619865,0.0002697,2]
[384869170,1757603438681,-1295.0,0.00026977,2]
[384869171,1757603438690,-186.91354752,0.00026979,2]
[384869172,1757603438699,-186.91354752,0.00026986,2]
[384869173,1757603438708,-186.91354752,0.00026988,2]
[384869174,1757603438718,-166.67,0.00027012,2]
[384869175,1757603438727,-1000.0,0.00027013,7]
[384869176,1757603438737,-515.37529716,0.00027028,2]
[384869177,1757603438746,-212.89373682,0.00027028,2]
[384869178,1757603438756,-832.02896759,0.00027033,2]
[384869180,1757603438766,-1608.59323546,0.00027063,2]
[384869182,1757603438775,-320.28,0.000271,2]
[384869184,1757603438785,-1425.0,0.00027114,2]
[384869186,1757603438794,-15033.19104797,0.0002712,2]
[384869188,1757603438805,-600.0,0.00027123,2]
[384869190,1757603438815,-168.0,0.00027129,2]
[384869192,1757603438825,-1000.0,0.00027131,2]
[384869194,1757603438834,-505.0,0.00027137,2]
[384869195,1757603438843,-872.05785263,0.00027148,2]
[384869198,1757603438852,-710.0,0.00027151,7]
[384869199,1757603438862,-1425.0,0.00027164,2]
[384869200,1757603438871,-150.0,0.00027167,2]
[384869201,1757603438881,-343.0,0.0002717,7]
[384869202,1757603438891,-3054.0,0.00027172,2]
[384869203,1757603438902,-1425.0,0.00027177,2]
[384869204,1757603438918,-1479.28950882,0.00027185,2]
[384869205,1757603438928,-6161.87046668,0.00027189,2]
[384869206,1757603438940,-1147.52027506,0.000272,4]
[384869207,1757603438950,-1425.0,0.00027201,2]
[384869208,1757603438963,-1000.0,0.00027205,7]
[384869209,1757603438975,-1425.0,0.00027206,2]
[384869210,1757603438987,-1425.0,0.00027209,2]
[384869211,1757603438996,-1425.0,0.00027218,2]
[384869212,1757603439006,-6161.87046665,0.00027231,2]
[384869213,1757603439016,-1425.0,0.00027235,2]
[384869214,1757603439027,-150.0,0.0002724,2]
[384869215,1757603439037,-1425.0,0.00027244,2]
[384869216,1757603439047,-458.29575058,0.00027245,2]
[384869217,1757603439056,-150.0,0.00027249,2]
[384869218,1757603439066,-1425.0,0.00027257,2]
[384869219,1757603439075,-1425.0,0.0002726,2]
[384869220,1757603439084,-912.08673766,0.00027262,2]
[384869221,1757603439093,-1425.0,0.00027264,2]
[384869222,1757603439103,-1425.0,0.0002727,2]
[384869223,1757603439113,-1425.0,0.0002727,2]
[384869224,1757603439122,-2498.574,0.00027273,16]
[384869225,1757603439132,-190.542,0.00027273,16]
[384869226,1757603439141,-1425.0,0.00027273,2]
[384869227,1757603439150,-6161.87046665,0.00027274,2]
[384869228,1757603439160,-150.0,0.00027274,2]
[384869229,1757603439169,-151.0,0.00027274,2]
[384869230,1757603439178,-150.0,0.00027274,2]
[384869231,1757603439187,-200.0,0.00027274,2]
[384869232,1757603439196,-150.26,0.00027274,2]
[384869233,1757603439205,-200.313,0.00027274,2]
[384869234,1757603439214,-196.806,0.00027274,2]
[384869235,1757603439223,-206.115,0.00027274,2]
[384869236,1757603439232,-150.0,0.00027274,2]
[384869237,1757603439241,-150.0,0.00027274,2]
[384869238,1757603439250,-150.114,0.00027274,2]
[384869239,1757603439259,-150.0,0.00027274,2]
[384869240,1757603439269,-3386.0,0.00027274,2]
[384869241,1757603439277,-2037.0,0.00027274,2]
[384869242,1757603439287,-886.0,0.00027274,2]
[384869243,1757603439296,-1259.0,0.00027274,2]
[384869244,1757603439305,-601.0,0.00027274,2]
[384869245,1757603439314,-1302.0,0.00027274,2]
[384869246,1757603439323,-568.0,0.00027274,2]
[384869247,1757603439332,-1579.0,0.00027274,2]
[384869248,1757603439342,-709.4886445,0.00027282,2]
[384869249,1757603439352,-1425.0,0.00027294,2]
[384869250,1757603439361,-163.63841538,0.00027297,2]
[384869251,1757603439371,-433.755423,0.00027297,2]
[384869252,1757603439380,-432.63380468,0.00027297,2]
[384869253,1757603439389,-2230.55399605,0.00027297,2]
[384869254,1757603439399,-1066.54,0.000273,2]
[384869255,1757603439408,-200.0,0.000273,2]
[384869256,1757603439417,-1351.0,0.000273,2]
[384869257,1757603439427,-710.0,0.00027303,2]
[384869258,1757603439437,-1425.0,0.00027308,2]
[384869259,1757603439446,-1000.0,0.00027309,2]
[384869260,1757603439456,-6161.87046665,0.00027316,2]
[384869261,1757603439465,-158.77959143,0.00027322,2]
[384869262,1757603439474,-1425.0,0.00027323,2]
[384869263,1757603439484,-2000.0,0.00027332,2]
[384869264,1757603439493,-2000.0,0.00027332,2]
[384869265,1757603439502,-1000.0,0.00027332,2]
[384869266,1757603439512,-1608.59323546,0.00027334,2]
[384869267,1757603439521,-1425.0,0.0002734,2]
[384869268,1757603439531,-901.72551834,0.00027342,2]
[384869269,1757603439540,-1425.0,0.00027342,2]
[384869270,1757603439549,-730.35,0.00027351,2]
[384869271,1757603439559,-4010.8174244,0.00027356,2]
[384869272,1757603439568,-151.0,0.00027356,7]
[384869273,1757603439577,-151.0,0.00027356,7]
[384869274,1757603439587,-151.0,0.00027356,7]
[384869275,1757603439596,-151.0,0.00027356,7]
[384869276,1757603439605,-151.0,0.00027356,7]
[384869277,1757603439614,-151.0,0.00027356,7]
[384869278,1757603439623,-151.0,0.00027356,7]
[384869279,1757603439632,-191.052646,0.00027356,7]
[384869280,1757603439642,-151.0,0.00027356,7]
[384869281,1757603439651,-151.0,0.00027356,7]
[384869282,1757603439659,-151.0,0.00027356,7]
[384869283,1757603439668,-151.0,0.00027356,7]
[384869284,1757603439678,-151.0,0.00027356,7]
[384869285,1757603439687,-324.280526,0.00027356,7]
[384869286,1757603439696,-151.0,0.00027356,7]
[384869287,1757603439705,-151.0,0.00027356,7]
[384869288,1757603439715,-324.280526,0.00027356,7]
[384869289,1757603439725,-151.0,0.00027356,7]
[384869290,1757603439735,-324.280526,0.00027356,7]
[384869291,1757603439744,-324.280526,0.00027356,7]
[384869292,1757603439754,-151.0,0.00027356,7]
[384869293,1757603439763,-151.0,0.00027356,7]
[384869294,1757603439773,-151.0,0.00027356,7]
[384869295,1757603439782,-151.0,0.00027356,7]
[384869296,1757603439792,-151.0,0.00027356,7]
[384869297,1757603439801,-151.0,0.00027356,7]
[384869298,1757603439810,-151.0,0.00027356,7]
[384869299,1757603439819,-152.653613,0.00027356,7]
[384869300,1757603439830,-152.865368,0.00027356,7]
[384869301,1757603439839,-151.0,0.00027356,7]
[384869302,1757603439849,-153.589314,0.00027356,7]
[384869303,1757603439858,-153.22498,0.00027356,7]
[384869304,1757603439869,-98644.9341904,0.00027357,2]
[384869305,1757603439878,-35409.7394622,0.00027357,2]
[384869306,1757603439888,-1830.29900407,0.00027357,2]
[384869307,1757603439897,-24661.2335476,0.00027357,2]
[384869308,1757603439907,-35409.7394622,0.00027357,2]
[384869309,1757603439916,-148316.7846307,0.00027357,4]
[384869310,1757603439926,-152.66068,0.00027357,7]
[384869313,1757603439937,-151.0,0.00027357,7]
[384869315,1757603440181,-151.0,0.00027357,7]
[384869317,1757603440192,-154.442552,0.00027357,7]
[384869318,1757603440203,-151.0,0.00027357,7]
[384869319,1757603440214,-151.0,0.00027357,7]
[384869320,1757603440224,-156.946514,0.00027357,7]
[384869321,1757603440234,-153.287695,0.00027357,7]
[384869322,1757603440243,-154.180818,0.00027357,7]
[384869324,1757603440253,-207.403808,0.00027357,7]
[384869325,1757603440263,-151.0,0.00027357,7]
[384869326,1757603440275,-151.0,0.00027357,7]
[384869327,1757603440286,-324.280526,0.00027357,7]
[384869328,1757603440296,-151.0,0.00027357,7]
[384869329,1757603440305,-151.0,0.00027357,7]
[384869330,1757603440315,-324.280526,0.00027357,7]
[384869331,1757603440325,-151.0,0.00027357,7]
[384869332,1757603440334,-324.280526,0.00027357,7]
[384869333,1757603440343,-324.280526,0.00027357,7]
[384869334,1757603440353,-151.771321,0.00027357,7]
[384869335,1757603440363,-151.0,0.00027357,7]
[384869336,1757603440373,-151.0,0.00027357,7]
[384869337,1757603440383,-187.357327,0.00027357,7]
[384869338,1757603440392,-151.0,0.00027357,7]
[384869339,1757603440402,-151.0,0.00027357,7]
[384869340,1757603440412,-151.0,0.00027357,7]
[384869341,1757603440421,-155.814308,0.00027357,7]
[384869342,1757603440431,-151.0,0.00027357,7]
[384869343,1757603440441,-151.0,0.00027357,7]
[384869344,1757603440450,-86314.3174166,0.00027357,2]
[384869345,1757603440460,-106229.218387,0.00027357,2]
[384869346,1757603440469,-383.01795453,0.00027357,2]
[384869347,1757603440479,-12330.6167738,0.00027358,2]
[384869348,1757603440488,-6161.87046665,0.00027359,2]
[384869349,1757603440498,-150.0,0.00027359,2]
[384869350,1757603440508,-500.0,0.00027359,2]
[384869351,1757603440520,-200.07382168,0.00027359,2]
[384869352,1757603440530,-263.15141571,0.00027359,2]
[384869353,1757603440540,-158.16798482,0.00027359,2]
[384869354,1757603440550,-12330.6167738,0.00027366,2]
[384869355,1757603440560,-151.0,0.00027366,7]
[384869356,1757603440569,-151.0,0.00027366,7]
[384869357,1757603440579,-151.0,0.00027366,7]
[384869358,1757603440588,-151.0,0.00027366,7]
[384869359,1757603440598,-151.0,0.00027366,7]
[384869360,1757603440607,-151.0,0.00027366,7]
[384869361,1757603440616,-324.280526,0.00027366,7]
[384869362,1757603440625,-151.0,0.00027366,7]
[384869363,1757603440635,-151.0,0.00027366,7]
[384869364,1757603440644,-324.280526,0.00027366,7]
[384869365,1757603440653,-151.0,0.00027366,7]
[384869366,1757603440663,-324.280526,0.00027366,7]
[384869367,1757603440673,-324.280526,0.00027366,7]
[384869368,1757603440683,-151.0,0.00027366,7]
[384869369,1757603440692,-44394.63515308,0.00027367,2]
[384869370,1757603440707,-17258.44871592,0.00027367,2]
[384869371,1757603440717,-106229.218387,0.00027367,2]
[384869372,1757603440726,-151.0,0.00027367,7]
[384869373,1757603440735,-151.0,0.00027367,7]
[384869374,1757603440744,-151.0,0.00027367,7]
[384869375,1757603440754,-151.0,0.00027367,7]
[384869377,1757603440763,-151.0,0.00027367,7]
[384869379,1757603440775,-151.0,0.00027367,7]
[384869380,1757603440785,-173.647295,0.00027367,7]
[384869381,1757603440795,-151.0,0.00027367,7]
[384869382,1757603440804,-151.0,0.00027367,7]
[384869383,1757603440813,-151.0,0.00027367,7]
[384869384,1757603440822,-151.0,0.00027367,7]
[384869385,1757603440832,-151.0,0.00027367,7]
[384869386,1757603440841,-151.0,0.00027367,7]
[384869387,1757603440850,-151.0,0.00027367,7]
[384869388,1757603440860,-151.0,0.00027367,7]
[384869389,1757603440870,-151.0,0.00027367,7]
[384869390,1757603440880,-151.0,0.00027367,7]
[384869391,1757603440890,-151.0,0.00027367,7]
[384869392,1757603440901,-151.0,0.00027367,7]
[384869393,1757603440910,-151.0,0.00027367,7]
[384869394,1757603440920,-251.51459,0.00027367,7]
[384869395,1757603440929,-151.0,0.00027367,7]
[384869396,1757603440943,-151.0,0.00027367,7]
[384869397,1757603440953,-190.789485,0.00027367,7]
[384869398,1757603440963,-190.789485,0.00027367,7]
[384869399,1757603440973,-190.789485,0.00027367,7]
[384869400,1757603440983,-190.789485,0.00027367,7]
[384869401,1757603440993,-190.789485,0.00027367,7]
[384869402,1757603441003,-190.789485,0.00027367,7]
[384869403,1757603441013,-190.789485,0.00027367,7]
[384869404,1757603441025,-190.789485,0.00027367,7]
[384869405,1757603441034,-151.0,0.00027367,7]
[384869406,1757603441044,-151.0,0.00027367,7]
[384869407,1757603441053,-151.0,0.00027367,7]
[384869408,1757603441063,-151.0,0.00027367,7]
[384869409,1757603441073,-762.342931,0.00027367,7]
[384869410,1757603441082,-762.342931,0.00027367,7]
[384869411,1757603441091,-762.342931,0.00027367,7]
[384869412,1757603441101,-762.342931,0.00027367,7]
[384869413,1757603441111,-762.342931,0.00027367,7]
[384869414,1757603441121,-762.342931,0.00027367,7]
[384869415,1757603441130,-762.342931,0.00027367,7]
[384869416,1757603441139,-762.342931,0.00027367,7]
[384869417,1757603441149,-151.0,0.00027367,7]
[384869418,1757603441159,-151.0,0.00027367,7]
[384869419,1757603441169,-151.0,0.00027367,7]
[384869420,1757603441179,-151.0,0.00027367,7]
[384869421,1757603441188,-151.0,0.00027367,7]
[384869422,1757603441198,-151.0,0.00027367,7]
[384869423,1757603441207,-154.808197,0.00027367,7]
[384869424,1757603441216,-151.0,0.00027367,7]
[384869425,1757603441226,-151.0,0.00027367,7]
[384869426,1757603441235,-151.0,0.00027367,7]
[384869427,1757603441245,-159.056458,0.00027367,7]
[384869428,1757603441255,-151.0,0.00027367,7]
[384869429,1757603441264,-151.0,0.00027367,7]
[384869430,1757603441273,-151.0,0.00027367,7]